fUSD/lending_fUSD_20250309
["ID","MTS","AMOUNT","RATE_DAILY","PERIOD"]
[355707050,1741487442832,-505.93663589,9.996e-05,2]
[355707051,1741487442841,-508.58956773,9.996e-05,2]
[355707052,1741487442852,-501.92924473,9.996e-05,2]
[355707053,1741487442861,-513.22258268,9.996e-05,2]
[355707054,1741487442871,-597.94447804,9.996e-05,2]
[355707055,1741487442881,-500.0,9.996e-05,2]
[355707056,1741487442890,-1421.32,9.996e-05,2]
[355707057,1741487442900,-1001.44,9.996e-05,2]
[355707058,1741487442910,-875.09,9.996e-05,2]
[355707059,1741487442919,-533.25,9.996e-05,2]
[355707060,1741487442929,-554.4246668,9.996e-05,2]
[355707061,1741487442939,-1374.04,9.996e-05,2]
[355707062,1741487442948,-2434.41,9.996e-05,2]
[355707063,1741487442957,-1067.45,9.996e-05,2]
[355707064,1741487442967,-500.0,9.996e-05,2]
[355707065,1741487442977,-500.0,9.996e-05,2]
[355707066,1741487442987,-489.40100222,9.996e-05,2]
[355707067,1741487442996,-1228.0,9.997e-05,2]
[355707068,1741487443005,-8455.21017584,9.997e-05,2]
[355707069,1741487443021,-87968.72255039,9.997e-05,2]
[355707076,1741487443391,-645.916,9.989e-05,2]
[355707078,1741487443400,-500.0,9.995e-05,2]
[355707080,1741487443409,-1077.74538915,9.997e-05,2]
[355707083,1741487443421,-4897.1909532,9.997e-05,2]
[355707086,1741487443433,-9289.25953684,9.997e-05,2]
[355707088,1741487445900,-500.0,9.995e-05,2]
[355707089,1741487445913,-500.0,9.995e-05,2]
[355707090,1741487445925,-500.0,9.995e-05,2]
[355707091,1741487445936,-5360.7744594,9.997e-05,2]
[355707092,1741487445950,-31376.91292843,9.997e-05,2]
[355707093,1741487445964,-5727.067215,9.997e-05,2]
[355707094,1741487445978,-1602.70349695,9.997e-05,2]
[355707095,1741487446087,-517.08541294,9.995e-05,2]
[355707096,1741487446099,-685.6437374,9.997e-05,2]
[355707101,1741487526977,568.2,0.00028,120]
[355707102,1741487842289,2279.77073974,0.00028,120]
[355707103,1741488149107,10000.0,0.00028,120]
[355707104,1741488155923,10000.0,0.00028,120]
[355707105,1741488177103,10000.0,0.00028,120]
[355707115,1741488338979,795.0,0.00028,120]
[355707143,1741488632092,-250.0,8.795e-05,2]
[355707144,1741488632102,-2097.49535776,8.838e-05,2]
[355707145,1741488632114,-139.47464224,8.838e-05,2]
[355707146,1741488632123,-2000.0,8.934e-05,2]
[355707147,1741488632133,-162.71,8.939e-05,2]
[355707148,1741488632143,-300.0,8.973e-05,2]
[355707149,1741488632153,-3931.81058908,8.974e-05,2]
[355707150,1741488632197,-5291.95941092,8.974e-05,2]
[355707151,1741488632207,-26.04058908,9e-05,3]
[355707152,1741488632302,-641.02049532,9e-05,3]
[355707153,1741488632312,-150.0,9.014e-05,2]
[355707154,1741488632322,-373.13,9.029e-05,2]
[355707155,1741488632331,-1224.26,9.029e-05,2]
[355707156,1741488632341,-684.7173398,9.05e-05,2]
[355707157,1741488632351,-570.14,9.05e-05,2]
[355707158,1741488632361,-1000.0,9.059e-05,2]
[355707159,1741488632370,-150.0,9.096e-05,2]
[355707160,1741488632380,-150.0,9.833e-05,2]
[355707161,1741488632389,-420.0,9.871e-05,2]
[355707162,1741488632399,-512.2277,9.894e-05,2]
[355707163,1741488632408,-16489.42266488,9.896e-05,2]
[355707169,1741488638127,-903.71663512,9.896e-05,2]
[355707170,1741488638138,-244.5889,9.897e-05,2]
[355707171,1741488638149,-150.0,9.9e-05,2]
[355707172,1741488638159,-7104.56465732,9.987e-05,2]
[355707173,1741488638189,-602.48168055,9.987e-05,2]
[355707174,1741488638292,-1848.58418204,9.987e-05,2]
[355707198,1741488640182,-798.52623198,9.987e-05,2]
[355707199,1741488640195,-900.0,9.987e-05,2]
[355707200,1741488640206,-1030.82396,9.987e-05,2]
[355707201,1741488640218,-2195.30000002,9.987e-05,2]
[355707202,1741488640287,-254.98887991,9.987e-05,2]
[355707203,1741488640444,-4000.0,9.987e-05,2]
[355707204,1741488640546,-789.81078357,9.987e-05,2]
[355707205,1741488640556,-150.0,9.987e-05,2]
[355707206,1741488640565,-2597.27452636,9.988e-05,2]
[355707207,1741488640577,-27670.88336456,9.988e-05,2]
[355707208,1741488640587,-30602.92,9.99e-05,2]
[355707209,1741488640597,-1500.961,9.993e-05,2]
[355707210,1741488640607,-500.0,9.993e-05,2]
[355707211,1741488640616,-511.2083038,9.993e-05,2]
[355707212,1741488640626,-500.0,9.993e-05,2]
[355707213,1741488640636,-508.51,9.993e-05,2]
[355707214,1741488640645,-500.0,9.993e-05,2]
[355707215,1741488640655,-500.0,9.994e-05,2]
[355707216,1741488640664,-500.0,9.994e-05,2]
[355707217,1741488640673,-174.85310948,9.994e-05,2]
[355707218,1741488640683,-500.0,9.994e-05,2]
[355707219,1741488640692,-550.55315129,9.994e-05,2]
[355707220,1741488640701,-504.65946321,9.994e-05,2]
[355707221,1741488640710,-514.86475687,9.994e-05,2]
[355707222,1741488640719,-512.85591628,9.994e-05,2]
[355707223,1741488640728,-637.32948162,9.994e-05,2]
[355707224,1741488640739,-500.0,9.994e-05,2]
[355707225,1741488640749,-504.64017022,9.994e-05,2]
[355707226,1741488640758,-514.54009466,9.994e-05,2]
[355707228,1741488640767,-582.91005207,9.994e-05,2]
[355707230,1741488640776,-500.0,9.994e-05,2]
[355707232,1741488640786,-516.14135865,9.994e-05,2]
[355707234,1741488640795,-225.30196162,9.994e-05,2]
[355707236,1741488640805,-503.349361,9.994e-05,2]
[355707238,1741488640814,-500.0,9.994e-05,2]
[355707239,1741488640823,-500.0,9.994e-05,2]
[355707240,1741488640832,-500.0,9.994e-05,2]
[355707241,1741488640841,-500.0,9.994e-05,2]
[355707242,1741488640851,-528.04712542,9.994e-05,2]
[355707243,1741488641119,-520.57170496,9.994e-05,2]
[355707244,1741488641129,-500.0,9.994e-05,2]
[355707245,1741488641139,-500.0,9.994e-05,2]
[355707246,1741488641149,-1157.094606,9.994e-05,2]
[355707247,1741488641158,-500.0,9.994e-05,2]
[355707248,1741488641167,-500.0,9.994e-05,2]
[355707249,1741488641177,-500.0,9.994e-05,2]
[355707250,1741488641187,-500.0,9.994e-05,2]
[355707251,1741488641196,-1487.233588,9.994e-05,2]
[355707252,1741488641205,-500.0,9.994e-05,2]
[355707253,1741488641215,-500.0,9.994e-05,2]
[355707254,1741488641225,-500.0,9.994e-05,2]
[355707255,1741488641234,-500.0,9.994e-05,2]
[355707256,1741488641244,-164.412339,9.994e-05,2]
[355707257,1741488641253,-500.0,9.994e-05,2]
[355707258,1741488641262,-714.83,9.994e-05,2]
[355707259,1741488641272,-500.0,9.994e-05,2]
[355707260,1741488641282,-500.0,9.994e-05,2]
[355707261,1741488641292,-500.0,9.994e-05,2]
[355707262,1741488641301,-649.0,9.994e-05,2]
[355707263,1741488641310,-500.0,9.994e-05,2]
[355707264,1741488641319,-500.0,9.994e-05,2]
[355707265,1741488641328,-500.0,9.994e-05,2]
[355707266,1741488641338,-578.76,9.994e-05,2]
[355707267,1741488641347,-500.0,9.994e-05,2]
[355707268,1741488641357,-526.04441461,9.994e-05,2]
[355707269,1741488641366,-500.0,9.994e-05,2]
[355707270,1741488641375,-500.0,9.994e-05,2]
[355707271,1741488641384,-500.0,9.994e-05,2]
[355707272,1741488641393,-500.0,9.994e-05,2]
[355707273,1741488641403,-500.0,9.994e-05,2]
[355707274,1741488641412,-500.0,9.994e-05,2]
[355707275,1741488641422,-500.0,9.994e-05,2]
[355707276,1741488641431,-500.0,9.994e-05,2]
[355707277,1741488641440,-500.0,9.994e-05,2]
[355707278,1741488641449,-500.0,9.994e-05,2]
[355707279,1741488641459,-217.94852235,9.994e-05,2]
[355707280,1741488641469,-500.0,9.994e-05,2]
[355707281,1741488641478,-500.0,9.994e-05,2]
[355707282,1741488641487,-500.0,9.994e-05,2]
[355707283,1741488641496,-505.86793363,9.994e-05,2]
[355707284,1741488641506,-500.0,9.994e-05,2]
[355707285,1741488641515,-500.0,9.994e-05,2]
[355707286,1741488641525,-500.0,9.994e-05,2]
[355707287,1741488641534,-500.0,9.994e-05,2]
[355707288,1741488641544,-500.0,9.994e-05,2]
[355707289,1741488641553,-500.0,9.994e-05,2]
[355707290,1741488641562,-500.0,9.994e-05,2]
[355707291,1741488641572,-500.0,9.994e-05,2]
[355707292,1741488641582,-500.0,9.994e-05,2]
[355707293,1741488641591,-500.0,9.994e-05,2]
[355707294,1741488641601,-500.0,9.994e-05,2]
[355707295,1741488641611,-500.0,9.994e-05,2]
[355707296,1741488641620,-500.0,9.994e-05,2]
[355707297,1741488641630,-500.0,9.994e-05,2]
[355707298,1741488641640,-514.65508764,9.994e-05,2]
[355707299,1741488641652,-341.32570615,9.994e-05,2]
[355707300,1741488641664,-510.58269199,9.994e-05,2]
[355707301,1741488641676,-516.73345509,9.994e-05,2]
[355707302,1741488641686,-500.0,9.994e-05,2]
[355707303,1741488641695,-336.54328416,9.994e-05,2]
[355707304,1741488641706,-500.0,9.994e-05,2]
[355707305,1741488641715,-500.0,9.994e-05,2]
[355707306,1741488641725,-510.48813987,9.994e-05,2]
[355707307,1741488641736,-241.24263574,9.994e-05,2]
[355707308,1741488641745,-599.02,9.994e-05,2]
[355707309,1741488641755,-500.0,9.994e-05,2]
[355707310,1741488641764,-215.56402201,9.994e-05,2]
[355707311,1741488641774,-514.03100674,9.994e-05,2]
[355707312,1741488641784,-500.0,9.994e-05,2]
[355707313,1741488641793,-500.0,9.994e-05,2]
[355707314,1741488641802,-500.0,9.994e-05,2]
[355707315,1741488641812,-500.0,9.994e-05,2]
[355707316,1741488641822,-724.45,9.994e-05,2]
[355707317,1741488641831,-501.35375291,9.994e-05,2]
[355707318,1741488641841,-500.0,9.994e-05,2]
[355707319,1741488641851,-500.0,9.994e-05,2]
[355707320,1741488641860,-637.8602169,9.994e-05,2]
[355707321,1741488641870,-1319.07,9.994e-05,2]
[355707322,1741488641880,-507.24801675,9.994e-05,2]
[355707323,1741488641890,-2033.48,9.994e-05,2]
[355707324,1741488641899,-505.46446387,9.994e-05,2]
[355707325,1741488641910,-500.0,9.994e-05,2]
[355707326,1741488641921,-500.0,9.994e-05,2]
[355707327,1741488641932,-582.95354885,9.994e-05,2]
[355707328,1741488641947,-500.0,9.994e-05,2]
[355707329,1741488641956,-348.69,9.994e-05,2]
[355707330,1741488641966,-500.0,9.994e-05,2]
[355707331,1741488641975,-500.0,9.994e-05,2]
[355707332,1741488641985,-518.74202168,9.994e-05,2]
[355707333,1741488641995,-500.0,9.994e-05,2]
[355707334,1741488642007,-500.0,9.994e-05,2]
[355707335,1741488642018,-500.0,9.994e-05,2]
[355707336,1741488642028,-586.43,9.994e-05,2]
[355707337,1741488642039,-500.0,9.994e-05,2]
[355707338,1741488642050,-259.37076063,9.994e-05,2]
[355707339,1741488642059,-677.39,9.994e-05,2]
[355707340,1741488642068,-512.63897434,9.994e-05,2]
[355707341,1741488642078,-500.0,9.994e-05,2]
[355707342,1741488642088,-500.0,9.994e-05,2]
[355707343,1741488642099,-500.0,9.994e-05,2]
[355707344,1741488642111,-500.0,9.994e-05,2]
[355707345,1741488642122,-500.0,9.994e-05,2]
[355707346,1741488642131,-1127.85,9.994e-05,2]
[355707347,1741488642142,-762.2,9.994e-05,2]
[355707348,1741488642152,-536.13,9.994e-05,2]
[355707349,1741488642162,-506.8389234,9.994e-05,2]
[355707350,1741488642173,-507.2625605,9.994e-05,2]
[355707351,1741488642183,-534.4,9.994e-05,2]
[355707352,1741488642192,-509.22583939,9.994e-05,2]
[355707353,1741488642203,-510.14133118,9.994e-05,2]
[355707354,1741488642213,-597.94447804,9.994e-05,2]
[355707355,1741488642223,-505.52041648,9.994e-05,2]
[355707356,1741488642233,-662.8,9.994e-05,2]
[355707357,1741488642243,-500.0,9.994e-05,2]
[355707358,1741488642253,-215.86002868,9.994e-05,2]
[355707359,1741488642263,-500.0,9.994e-05,2]
[355707360,1741488642274,-1240.07,9.994e-05,2]
[355707361,1741488642284,-500.0,9.994e-05,2]
[355707362,1741488642295,-516.81011258,9.994e-05,2]
[355707363,1741488642304,-220.40779188,9.994e-05,2]
[355707364,1741488642315,-500.0,9.994e-05,2]
[355707365,1741488642324,-780.34,9.994e-05,2]
[355707366,1741488642334,-787.36,9.994e-05,2]
[355707367,1741488642344,-507.97041882,9.994e-05,2]
[355707368,1741488642354,-500.0,9.994e-05,2]
[355707369,1741488642364,-511.40285786,9.994e-05,2]
[355707370,1741488642374,-502.47760787,9.994e-05,2]
[355707371,1741488642384,-500.0,9.994e-05,2]
[355707372,1741488642395,-943.81,9.994e-05,2]
[355707373,1741488642405,-500.0,9.994e-05,2]
[355707374,1741488642415,-500.0,9.994e-05,2]
[355707375,1741488642425,-695.54,9.994e-05,2]
[355707376,1741488642434,-507.47067265,9.994e-05,2]
[355707377,1741488642444,-500.0,9.994e-05,2]
[355707378,1741488642454,-511.84615631,9.994e-05,2]
[355707379,1741488642463,-613.4,9.994e-05,2]
[355707380,1741488642473,-500.0,9.994e-05,2]
[355707381,1741488642483,-503.56080442,9.994e-05,2]
[355707382,1741488642493,-512.84470576,9.994e-05,2]
[355707383,1741488642503,-1806.31,9.994e-05,2]
[355707384,1741488642513,-500.0,9.994e-05,2]
[355707385,1741488642522,-2268.44,9.994e-05,2]
[355707386,1741488642533,-500.0,9.994e-05,2]
[355707387,1741488642544,-500.0,9.994e-05,2]
[355707388,1741488642554,-500.0,9.994e-05,2]
[355707389,1741488642563,-500.0,9.994e-05,2]
[355707390,1741488642574,-503.29526578,9.994e-05,2]
[355707391,1741488642583,-500.0,9.994e-05,2]
[355707392,1741488642593,-508.72204671,9.994e-05,2]
[355707393,1741488642605,-511.25745116,9.994e-05,2]
[355707394,1741488642614,-1794.96,9.994e-05,2]
[355707395,1741488642624,-504.62892078,9.994e-05,2]
[355707396,1741488642634,-500.2549611,9.994e-05,2]
[355707397,1741488642645,-500.0,9.994e-05,2]
[355707398,1741488642655,-625.45,9.994e-05,2]
[355707399,1741488642665,-536.04573223,9.994e-05,2]
[355707400,1741488642674,-500.0,9.994e-05,2]
[355707401,1741488642684,-500.0,9.994e-05,2]
[355707402,1741488642694,-500.0,9.994e-05,2]
[355707403,1741488642704,-500.0,9.994e-05,2]
[355707404,1741488642714,-710.02,9.994e-05,2]
[355707405,1741488642724,-500.0,9.994e-05,2]
[355707406,1741488642733,-506.71251063,9.994e-05,2]
[355707407,1741488642744,-8409.83,9.994e-05,2]
[355707408,1741488642753,-527.03454121,9.994e-05,2]
[355707409,1741488642762,-500.0,9.994e-05,2]
[355707410,1741488642772,-500.0,9.994e-05,2]
[355707411,1741488642781,-1306.41,9.994e-05,2]
[355707412,1741488642791,-505.97196681,9.994e-05,2]
[355707414,1741488642801,-3425.23,9.994e-05,2]
[355707416,1741488642811,-500.0,9.994e-05,2]
[355707417,1741488642822,-509.44786952,9.994e-05,2]
[355707418,1741488642831,-500.0,9.994e-05,2]
[355707419,1741488642841,-1008.73,9.994e-05,2]
[355707420,1741488642851,-500.0,9.994e-05,2]
[355707421,1741488642862,-500.0,9.994e-05,2]
[355707422,1741488642872,-561.98757847,9.994e-05,2]
[355707423,1741488642891,-63.4416855,9.994e-05,2]
[355707424,1741488642902,-436.5583145,9.994e-05,2]
[355707434,1741488644945,-1018.14014741,9.894e-05,2]
[355707435,1741488644968,-1481.85985259,9.894e-05,2]
[355707436,1741488644979,-500.0,9.993e-05,2]
[355707437,1741488644989,-63.4416855,9.994e-05,2]
[355707438,1741488644998,-500.0,9.994e-05,2]
[355707439,1741488645012,-512.45265543,9.994e-05,2]
[355707440,1741488645022,-500.0,9.994e-05,2]
[355707441,1741488645032,-1024.27,9.994e-05,2]
[355707442,1741488645042,-500.0,9.994e-05,2]
[355707443,1741488645288,-500.0,9.994e-05,2]
[355707444,1741488645299,-500.0,9.994e-05,2]
[355707445,1741488645320,-345.57272475,9.994e-05,2]
[355707446,1741488645334,-500.0,9.994e-05,2]
[355707447,1741488645344,-513.86382241,9.994e-05,2]
[355707448,1741488645357,-201.87972248,9.994e-05,2]
[355707449,1741488645371,-302.22679305,9.994e-05,2]
[355707450,1741488645381,-500.0,9.994e-05,2]
[355707451,1741488645392,-234.68944555,9.994e-05,2]
[355707452,1741488645403,-524.84,9.994e-05,2]
[355707453,1741488645414,-502.08824295,9.994e-05,2]
[355707454,1741488645424,-505.09260024,9.994e-05,2]
[355707455,1741488645435,-594.56291821,9.994e-05,2]
[355707459,1741488646164,-224.62708179,9.994e-05,2]
[355707460,1741488646175,-500.0,9.994e-05,2]
[355707461,1741488646185,-500.0,9.994e-05,2]
[355707462,1741488646196,-507.73971828,9.994e-05,2]
[355707463,1741488646206,-530.86038164,9.994e-05,2]
[355707464,1741488646216,-500.0,9.994e-05,2]
[355707465,1741488646226,-500.0,9.994e-05,2]
[355707466,1741488646236,-500.0,9.994e-05,2]
[355707467,1741488646245,-2087.07,9.994e-05,2]
[355707468,1741488646255,-193.03151829,9.994e-05,2]
[355707469,1741488646377,-316.15219629,9.994e-05,2]
[355707470,1741488646387,-1610.17,9.994e-05,2]
[355707471,1741488646396,-1032.78,9.994e-05,2]
[355707472,1741488646406,-503.71109898,9.994e-05,2]
[355707475,1741488646438,-865.77293909,9.994e-05,2]
[355707476,1741488646450,-265.74706091,9.994e-05,2]
[355707477,1741488646460,-503.87194608,9.994e-05,2]
[355707478,1741488646469,-327.88099292,9.994e-05,2]
[355707479,1741488877485,317.0,0.00025,120]
[355707480,1741489223556,210.0,0.00028,120]
[355707501,1741489832312,-686.38615094,8.219e-05,2]
[355707502,1741489832411,-1096.3216706,8.219e-05,2]
[355707503,1741489832469,-426.34414776,8.219e-05,2]
[355707504,1741489832627,-162.9580307,8.219e-05,2]
[355707505,1741489832640,-333.91622677,8.219e-05,2]
[355707506,1741489832654,-150.0,8.63e-05,2]
[355707507,1741489832667,-250.0,8.994e-05,2]
[355707508,1741489832681,-2000.0,9.01e-05,2]
[355707509,1741489832697,-163.33,9.021e-05,2]
[355707510,1741489832711,-2253.76,9.029e-05,2]
[355707511,1741489832724,-119.74164419,9.041e-05,2]
[355707513,1741489832741,-30.25835581,9.041e-05,2]
[355707516,1741489832753,-150.0,9.041e-05,2]
[355707518,1741489832769,-147.75464848,9.049e-05,2]
[355707521,1741489832791,-38.80535152,9.049e-05,2]
[355707524,1741489832802,-854.2511983,9.087e-05,2]
[355707553,1741489838384,-145.7488017,9.087e-05,2]
[355707554,1741489838396,-953.53,9.091e-05,2]
[355707555,1741489838408,-344.75,9.378e-05,2]
[355707556,1741489838421,-261.15260698,9.674e-05,2]
[355707557,1741489838433,-1031.40325769,9.794e-05,2]
[355707558,1741489838446,-923.1529,9.894e-05,2]
[355707559,1741489838457,-1481.2529,9.894e-05,2]
[355707560,1741489838469,-181.5376,9.894e-05,2]
[355707561,1741489838480,-292.0511,9.894e-05,2]
[355707562,1741489838492,-345.858,9.895e-05,2]
[355707563,1741489838503,-4928.4,9.895e-05,2]
[355707564,1741489838515,-500.0,9.973e-05,2]
[355707565,1741489838526,-1500.351,9.992e-05,2]
[355707566,1741489838538,-1008.8472283,9.992e-05,2]
[355707567,1741489838549,-1797.5401592,9.992e-05,2]
[355707568,1741489838560,-2070.32340337,9.992e-05,2]
[355707569,1741489838582,-1330.92981643,9.992e-05,2]
[355707570,1741489838593,-500.0,9.993e-05,2]
[355707572,1741489838604,-500.0,9.993e-05,2]
[355707573,1741489838615,-1208.97,9.993e-05,2]
[355707574,1741489838627,-500.0,9.993e-05,2]
[355707575,1741489838638,-500.0,9.993e-05,2]
[355707576,1741489838649,-500.0,9.993e-05,2]
[355707577,1741489838660,-504.04627168,9.993e-05,2]
[355707578,1741489838671,-1350.3949163,9.993e-05,2]
[355707579,1741489838684,-1691.9426043,9.993e-05,2]
[355707580,1741489838695,-2033.4902922,9.993e-05,2]
[355707582,1741489838706,-2406.1017612,9.993e-05,2]
[355707584,1741489838716,-3014.6633631,9.993e-05,2]
[355707586,1741489838727,-3623.224965,9.993e-05,2]
[355707588,1741489838738,-4552.7557869,9.993e-05,2]
[355707590,1741489838748,-5704.2583541,9.993e-05,2]
[355707593,1741489838759,-6855.7609213,9.993e-05,2]
[355707594,1741489838770,-500.0,9.994e-05,2]
[355707595,1741489838781,-991.795377,9.994e-05,2]
[355707596,1741489838792,-677.39,9.994e-05,2]
[355707597,1741489838803,-1127.85,9.994e-05,2]
[355707598,1741489838814,-1274.771646,9.994e-05,2]
[355707599,1741489838824,-534.4,9.994e-05,2]
[355707600,1741489838835,-1101.46,9.994e-05,2]
[355707601,1741489838846,-1240.07,9.994e-05,2]
[355707602,1741489838856,-500.0,9.994e-05,2]
[355707603,1741489838866,-500.0,9.994e-05,2]
[355707604,1741489838877,-1669.3,9.994e-05,2]
[355707605,1741489838888,-500.0,9.994e-05,2]
[355707606,1741489838899,-2268.44,9.994e-05,2]
[355707607,1741489838909,-762.2,9.994e-05,2]
[355707608,1741489838923,-710.02,9.994e-05,2]
[355707609,1741489838934,-500.0,9.994e-05,2]
[355707610,1741489838945,-624.96,9.994e-05,2]
[355707611,1741489838956,-3736.62,9.994e-05,2]
[355707612,1741489838967,-500.0,9.994e-05,2]
[355707613,1741489838979,-500.0,9.994e-05,2]
[355707614,1741489838990,-1306.41,9.994e-05,2]
[355707615,1741489839002,-500.0,9.994e-05,2]
[355707616,1741489839013,-1074.61,9.994e-05,2]
[355707617,1741489839024,-511.48327428,9.994e-05,2]
[355707618,1741489839036,-613.4,9.994e-05,2]
[355707619,1741489839047,-785.05,9.994e-05,2]
[355707620,1741489839059,-500.0,9.994e-05,2]
[355707621,1741489839070,-672.8,9.994e-05,2]
[355707622,1741489839082,-981.59,9.994e-05,2]
[355707623,1741489839093,-499.17930559,9.994e-05,2]
[355707624,1741489839104,-1131.74,9.994e-05,2]
[355707625,1741489839497,-855.92,9.994e-05,2]
[355707626,1741489839522,-500.0,9.994e-05,2]
[355707627,1741489839533,-500.0,9.994e-05,2]
[355707628,1741489839543,-500.0,9.994e-05,2]
[355707629,1741489839552,-1369.5,9.994e-05,2]
[355707630,1741489839562,-1104.39,9.994e-05,2]
[355707631,1741489839572,-672.78,9.994e-05,2]
[355707632,1741489839581,-616.27,9.994e-05,2]
[355707633,1741489839591,-612.73,9.994e-05,2]
[355707634,1741489839600,-500.0,9.994e-05,2]
[355707635,1741489839609,-2001.52,9.994e-05,2]
[355707636,1741489839619,-586.83,9.994e-05,2]
[355707637,1741489839628,-4578.81,9.994e-05,2]
[355707638,1741489839638,-500.0,9.994e-05,2]
[355707639,1741489839648,-500.0,9.994e-05,2]
[355707640,1741489839657,-2090.85,9.994e-05,2]
[355707641,1741489839667,-500.0,9.994e-05,2]
[355707642,1741489839677,-1801.55,9.994e-05,2]
[355707643,1741489839686,-618.40347606,9.994e-05,2]
[355707644,1741489839696,-500.0,9.994e-05,2]
[355707645,1741489839706,-500.0,9.994e-05,2]
[355707646,1741489839716,-1523.34670755,9.994e-05,2]
[355707647,1741489839987,-1779.92329245,9.994e-05,2]
[355707648,1741489839999,-554.44,9.994e-05,2]
[355707649,1741489840009,-943.67,9.994e-05,2]
[355707650,1741489840020,-658.9,9.994e-05,2]
[355707651,1741489840030,-994.74,9.994e-05,2]
[355707652,1741489840039,-545.91,9.994e-05,2]
[355707653,1741489840048,-824.47,9.994e-05,2]
[355707654,1741489840058,-1519.9,9.994e-05,2]
[355707655,1741489840068,-834.42,9.994e-05,2]
[355707656,1741489840077,-559.68,9.994e-05,2]
[355707657,1741489840087,-854.15,9.994e-05,2]
[355707658,1741489840097,-500.0,9.994e-05,2]
[355707659,1741489840107,-500.0,9.994e-05,2]
[355707660,1741489840116,-599.02,9.994e-05,2]
[355707661,1741489840125,-500.0,9.994e-05,2]
[355707662,1741489840135,-500.0,9.994e-05,2]
[355707663,1741489840145,-509.68,9.994e-05,2]
[355707664,1741489840154,-500.0,9.994e-05,2]
[355707665,1741489840164,-724.45,9.994e-05,2]
[355707666,1741489840173,-500.0,9.994e-05,2]
[355707667,1741489840183,-472.46786331,9.994e-05,2]
[355707668,1741489840192,-359.32992552,9.994e-05,2]
[355707670,1741489840203,-500.0,9.994e-05,2]
[355707672,1741489840212,-489.40100222,9.995e-05,2]
[355707674,1741489840221,-48445.06903219,9.995e-05,2]
[355707687,1741489843568,-586.43,9.994e-05,2]
[355707688,1741489843578,-500.0,9.994e-05,2]
[355707689,1741489843587,-1513.55743998,9.995e-05,2]
[355707690,1741489843599,-8402.4,9.995e-05,2]
[355707702,1741489845408,-3549.96844399,9.995e-05,2]
[355707710,1741489846302,-454.75651088,9.994e-05,2]
[355707711,1741489846312,-15.46696429,9.994e-05,2]
[355707712,1741489846325,-577.98303571,9.994e-05,2]
[355707713,1741489846335,-932.01,9.994e-05,2]
[355707714,1741489846344,-4112.76095762,9.995e-05,2]
[355707715,1741489846363,-3104.192539,9.995e-05,2]
[355707716,1741489846376,-335.30570427,9.995e-05,2]
[355707717,1741489846410,-379.89623438,9.995e-05,2]
[355707718,1741489846422,-543.2619752,9.995e-05,2]
[355707719,1741489846434,-691.25656509,9.995e-05,2]
[355707720,1741489846445,-879.41035815,9.995e-05,2]
[355707721,1741489846465,-40409.66939244,9.995e-05,2]
[355707722,1741489846477,-49213.03305148,9.995e-05,2]
[355707723,1741489846488,-680.31065153,9.995e-05,2]
[355707724,1741489846520,-110243.49139357,9.995e-05,2]
[355707725,1741489846532,-755.30239735,9.995e-05,2]
[355707726,1741489846575,-8936.01055095,9.995e-05,2]
[355707727,1741489846587,-4672.00804507,9.995e-05,2]
[355707728,1741489846599,-1936.62483291,9.995e-05,2]
[355707729,1741489846611,-769.686283,9.995e-05,2]
[355707730,1741489846629,-256.07445728,9.995e-05,2]
[355707732,1741489846643,-979.27642259,9.995e-05,2]
[355707735,1741490104993,214.33581917,0.00028,120]
[355707736,1741490315041,2000.0,0.00028,120]
[355707737,1741490461838,1889.48655632,0.00026,120]
[355707738,1741490510490,2692.0,0.00028,120]
[355707740,1741490726078,766.54444775,0.00027,120]
[355707755,1741490870178,-150.0,9.562e-05,7]
[355708031,1741491031499,-2253.4,8.219e-05,2]
[355708033,1741491031510,-826.11141144,8.715e-05,2]
[355708035,1741491031522,-673.88858856,8.715e-05,2]
[355708036,1741491031531,-754.03,8.728e-05,2]
[355708037,1741491031541,-1073.33535213,8.799e-05,2]
[355708038,1741491031552,-293.49962424,8.799e-05,2]
[355708039,1741491031912,-81.92502363,8.799e-05,2]
[355708040,1741491031922,-300.0,8.831e-05,2]
[355708041,1741491031932,-7923.4371218,8.832e-05,2]
[355708042,1741491031943,-580.99624631,8.832e-05,2]
[355708043,1741491031971,-5129.47663189,8.832e-05,2]
[355708044,1741491031981,-186.56,8.889e-05,2]